[Event "Late-Titled-Tuesday-Blitz-March-19-2024"]
[Site "Chess.com"]
[Date "2024.03.19"]
[Round "11"]
[White "woodhy"]
[Black "hell3raiser"]
[Result "0-1"]
[WhiteElo "2512"]
[BlackElo "2391"]
[TimeControl "180+1"]
[EndTime "16:04:27 PDT"]
[Termination "hell3raiser won by resignation"]

1. e4 {[%clk 0:03:00.9]} 1... e5 {[%clk 0:03:00]} 2. Nf3 {[%clk 0:03:00.5]} 2...
Nc6 {[%clk 0:02:59.9]} 3. Bb5 {[%clk 0:02:59]} 3... a6 {[%clk 0:02:59.4]} 4.
Bxc6 {[%clk 0:02:58.9]} 4... dxc6 {[%clk 0:02:59.6]} 5. O-O {[%clk 0:02:59.3]}
5... f6 {[%clk 0:02:59.5]} 6. d4 {[%clk 0:02:58.5]} 6... Bg4 {[%clk 0:02:59.1]}
7. dxe5 {[%clk 0:02:50.6]} 7... Qxd1 {[%clk 0:02:58.4]} 8. Rxd1 {[%clk
0:02:51.5]} 8... fxe5 {[%clk 0:02:58.6]} 9. Rd3 {[%clk 0:02:46.3]} 9... Bd6
{[%clk 0:02:57.9]} 10. Nbd2 {[%clk 0:02:43.7]} 10... Nf6 {[%clk 0:02:57.6]} 11.
Nc4 {[%clk 0:02:43.1]} 11... O-O-O {[%clk 0:02:57.1]} 12. Bg5 {[%clk 0:02:42]}
12... h6 {[%clk 0:02:25]} 13. Nxd6+ {[%clk 0:02:25.2]} 13... cxd6 {[%clk
0:02:23.1]} 14. Bxf6 {[%clk 0:02:24]} 14... gxf6 {[%clk 0:02:24]} 15. Nd2 {[%clk
0:02:13.8]} 15... d5 {[%clk 0:02:20.6]} 16. f3 {[%clk 0:02:11.2]} 16... Be6
{[%clk 0:02:19.8]} 17. Kf2 {[%clk 0:01:59]} 17... d4 {[%clk 0:02:16.9]} 18. b4
{[%clk 0:01:56.1]} 18... Kc7 {[%clk 0:02:15.4]} 19. a4 {[%clk 0:01:48.1]} 19...
h5 {[%clk 0:02:14.3]} 20. g3 {[%clk 0:01:45.7]} 20... f5 {[%clk 0:02:07.1]} 21.
Re1 {[%clk 0:01:41.4]} 21... h4 {[%clk 0:02:04.1]} 22. exf5 {[%clk 0:01:31.5]}
22... Bxf5 {[%clk 0:01:58.5]} 23. g4 {[%clk 0:01:25.1]} 23... Bxd3 {[%clk
0:01:56.7]} 24. cxd3 {[%clk 0:01:26]} 24... Rd5 {[%clk 0:01:39.5]} 25. Nc4
{[%clk 0:01:11.6]} 25... Re8 {[%clk 0:01:34.2]} 26. Nd2 {[%clk 0:00:57]} 26...
a5 {[%clk 0:01:32.6]} 27. Rb1 {[%clk 0:00:48.2]} 27... axb4 {[%clk 0:01:32]} 28.
Rxb4 {[%clk 0:00:49.1]} 28... Ra8 {[%clk 0:01:30.6]} 29. Nc4 {[%clk 0:00:47.5]}
29... b5 {[%clk 0:01:28.5]} 30. axb5 {[%clk 0:00:28.5]} 30... Rxb5 {[%clk
0:01:28.1]} 31. Rxb5 {[%clk 0:00:25.8]} 31... cxb5 {[%clk 0:01:29]} 32. Nxe5
{[%clk 0:00:26.5]} 32... Ra2+ {[%clk 0:01:27.6]} 33. Ke1 {[%clk 0:00:23.8]}
33... Rxh2 {[%clk 0:01:25.5]} 34. g5 {[%clk 0:00:23.6]} 34... Rg2 {[%clk
0:01:21.1]} 35. g6 {[%clk 0:00:17.6]} 35... h3 {[%clk 0:01:09.1]} 36. Kf1 {[%clk
0:00:17]} 36... Rg5 {[%clk 0:01:06.6]} 37. Ng4 {[%clk 0:00:13.2]} 37... Rxg6
{[%clk 0:01:05.8]} 38. Kg1 {[%clk 0:00:12.8]} 38... b4 {[%clk 0:01:04.7]} 39.
Kh2 {[%clk 0:00:13.3]} 39... b3 {[%clk 0:01:03.9]} 40. Ne5 {[%clk 0:00:12.7]}
40... Re6 {[%clk 0:01:01.7]} 41. Nc4 {[%clk 0:00:12.6]} 41... b2 {[%clk
0:01:00.3]} 42. Nxb2 {[%clk 0:00:12.2]} 42... Re2+ {[%clk 0:01:00.5]} 43. Kxh3
{[%clk 0:00:13.1]} 43... Rxb2 {[%clk 0:01:00.6]} 44. Kg4 {[%clk 0:00:14]} 44...
Kd6 {[%clk 0:01:00.9]} 45. Kf4 {[%clk 0:00:13.9]} 45... Kd5 {[%clk 0:01:01.3]}
46. Kf5 {[%clk 0:00:13.1]} 46... Rf2 {[%clk 0:01:00.9]} 47. f4 {[%clk 0:00:14]}
47... Rf1 {[%clk 0:01:00.9]} 48. Kg5 {[%clk 0:00:13.7]} 48... Ke6 {[%clk
0:01:01]} 49. f5+ {[%clk 0:00:12.8]} 49... Rxf5+ {[%clk 0:01:00.4]} 50. Kg4
{[%clk 0:00:13.7]} 50... Rf1 {[%clk 0:01:00]} 0-1

[Event "Late-Titled-Tuesday-Blitz-March-19-2024"]
[Site "Chess.com"]
[Date "2024.03.19"]
[Round "11"]
[White "Alex_Banzea"]
[Black "Julianos82"]
[Result "1-0"]
[WhiteElo "2576"]
[BlackElo "2399"]
[TimeControl "180+1"]
[EndTime "16:04:29 PDT"]
[Termination "Alex_Banzea won on time"]

1. d4 {[%clk 0:03:00.9]} 1... d5 {[%clk 0:02:59.1]} 2. Nc3 {[%clk 0:03:01.6]}
2... Nf6 {[%clk 0:02:57.9]} 3. Bf4 {[%clk 0:03:02.1]} 3... c6 {[%clk 0:02:54.6]}
4. e3 {[%clk 0:03:02.6]} 4... Bf5 {[%clk 0:02:53.5]} 5. f3 {[%clk 0:03:03.3]}
5... Qa5 {[%clk 0:02:44.6]} 6. g4 {[%clk 0:03:01.8]} 6... Bg6 {[%clk 0:02:43.9]}
7. h4 {[%clk 0:03:02.4]} 7... h5 {[%clk 0:02:41]} 8. g5 {[%clk 0:03:02.1]} 8...
Nfd7 {[%clk 0:02:40.1]} 9. Bd3 {[%clk 0:03:01.6]} 9... Bxd3 {[%clk 0:02:37.5]}
10. Qxd3 {[%clk 0:03:02]} 10... g6 {[%clk 0:02:37.4]} 11. Ne2 {[%clk 0:03:02.5]}
11... Bg7 {[%clk 0:02:37.4]} 12. e4 {[%clk 0:02:51.6]} 12... e6 {[%clk
0:02:35.4]} 13. O-O-O {[%clk 0:02:49.6]} 13... O-O {[%clk 0:02:23.1]} 14. Kb1
{[%clk 0:02:46.2]} 14... Na6 {[%clk 0:02:10]} 15. a3 {[%clk 0:02:16.1]} 15...
Rfd8 {[%clk 0:01:49.4]} 16. Ng3 {[%clk 0:02:05.8]} 16... Nb6 {[%clk 0:01:41.5]}
17. Nce2 {[%clk 0:02:03.7]} 17... Nc4 {[%clk 0:01:35.5]} 18. Nxh5 {[%clk
0:01:49.8]} 18... gxh5 {[%clk 0:01:33.6]} 19. Ng3 {[%clk 0:01:50.4]} 19... b5
{[%clk 0:01:28.1]} 20. Nxh5 {[%clk 0:01:36.2]} 20... b4 {[%clk 0:01:28.1]} 21.
a4 {[%clk 0:00:35.6]} 21... Qxa4 {[%clk 0:01:11.1]} 22. Nxg7 {[%clk 0:00:20.7]}
22... Kxg7 {[%clk 0:01:04.7]} 23. h5 {[%clk 0:00:21.3]} 23... Rab8 {[%clk
0:00:51.8]} 24. h6+ {[%clk 0:00:13.8]} 24... Kh8 {[%clk 0:00:45.3]} 25. g6
{[%clk 0:00:13.6]} 25... fxg6 {[%clk 0:00:35.9]} 26. h7 {[%clk 0:00:13.8]} 26...
b3 {[%clk 0:00:28.8]} 27. Qxc4 {[%clk 0:00:14.4]} 27... bxc2+ {[%clk 0:00:12.6]}
28. Qxc2 {[%clk 0:00:13.2]} 1-0

[Event "Late-Titled-Tuesday-Blitz-March-19-2024"]
[Site "Chess.com"]
[Date "2024.03.19"]
[Round "11"]
[White "stollenmonster"]
[Black "Stanbad1"]
[Result "1-0"]
[WhiteElo "2897"]
[BlackElo "2618"]
[TimeControl "180+1"]
[EndTime "16:04:32 PDT"]
[Termination "stollenmonster won by resignation"]

1. e4 {[%clk 0:03:00.9]} 1... e6 {[%clk 0:02:58.9]} 2. Nc3 {[%clk 0:03:00.7]}
2... d5 {[%clk 0:02:55.1]} 3. g3 {[%clk 0:03:01.6]} 3... Nf6 {[%clk 0:02:53.2]}
4. Bg2 {[%clk 0:03:01.9]} 4... dxe4 {[%clk 0:02:52.1]} 5. Nxe4 {[%clk
0:03:01.8]} 5... Nbd7 {[%clk 0:02:52.8]} 6. d4 {[%clk 0:03:01.5]} 6... Nxe4
{[%clk 0:02:52.8]} 7. Bxe4 {[%clk 0:03:02.4]} 7... Nf6 {[%clk 0:02:53.3]} 8. Bg2
{[%clk 0:03:02.6]} 8... Bd6 {[%clk 0:02:53.9]} 9. Nf3 {[%clk 0:03:01.6]} 9...
O-O {[%clk 0:02:54.4]} 10. O-O {[%clk 0:03:02.2]} 10... Rb8 {[%clk 0:02:54.7]}
11. c4 {[%clk 0:03:02.6]} 11... b6 {[%clk 0:02:54.8]} 12. Ne5 {[%clk 0:02:56.4]}
12... Bxe5 {[%clk 0:02:54.6]} 13. dxe5 {[%clk 0:02:57.3]} 13... Nd7 {[%clk
0:02:55.1]} 14. Qh5 {[%clk 0:02:51.5]} 14... Qe7 {[%clk 0:02:49.4]} 15. Rd1
{[%clk 0:02:42.1]} 15... Qc5 {[%clk 0:02:41.9]} 16. Bf4 {[%clk 0:02:33.7]} 16...
f6 {[%clk 0:02:32.5]} 17. Be4 {[%clk 0:02:07.3]} 17... f5 {[%clk 0:02:23]} 18.
Bg2 {[%clk 0:02:07.2]} 18... a5 {[%clk 0:02:15.4]} 19. Rd2 {[%clk 0:01:59]}
19... Nxe5 {[%clk 0:02:13.7]} 20. Re1 {[%clk 0:01:33.7]} 20... Ng6 {[%clk
0:02:11.3]} 21. Be3 {[%clk 0:01:30.5]} 21... Qe7 {[%clk 0:02:11]} 22. Bg5 {[%clk
0:01:30.9]} 22... Qc5 {[%clk 0:02:08.9]} 23. h4 {[%clk 0:01:18.3]} 23... e5
{[%clk 0:02:06.8]} 24. Bd5+ {[%clk 0:01:11.4]} 24... Kh8 {[%clk 0:02:05.1]} 25.
Qe2 {[%clk 0:01:09.9]} 25... f4 {[%clk 0:02:02.4]} 26. Kh2 {[%clk 0:00:31.4]}
26... c6 {[%clk 0:01:28]} 27. Be4 {[%clk 0:00:26.8]} 27... Bf5 {[%clk
0:01:27.5]} 28. h5 {[%clk 0:00:16.9]} 28... fxg3+ {[%clk 0:01:26]} 29. fxg3
{[%clk 0:00:16.5]} 29... Bxe4 {[%clk 0:01:21.6]} 30. Qxe4 {[%clk 0:00:16.9]}
30... Rf2+ {[%clk 0:01:18.1]} 31. Rxf2 {[%clk 0:00:17.3]} 31... Qxf2+ {[%clk
0:01:17.6]} 32. Kh3 {[%clk 0:00:17.8]} 32... Nf8 {[%clk 0:01:12.3]} 33. Qxe5
{[%clk 0:00:15.5]} 33... Ra8 {[%clk 0:01:12.5]} 34. h6 {[%clk 0:00:08.8]} 34...
Qf7 {[%clk 0:01:01.4]} 35. hxg7+ {[%clk 0:00:08.2]} 35... Kg8 {[%clk 0:01:02.2]}
36. gxf8=Q+ {[%clk 0:00:08.2]} 36... Rxf8 {[%clk 0:01:02.2]} 37. Qe6 {[%clk
0:00:08.5]} 37... Qxe6+ {[%clk 0:01:01.5]} 38. Rxe6 {[%clk 0:00:09.1]} 38... Rf2
{[%clk 0:01:01.8]} 39. b3 {[%clk 0:00:08]} 39... Rxa2 {[%clk 0:01:01.6]} 40.
Rxc6 {[%clk 0:00:08.7]} 40... a4 {[%clk 0:01:01.9]} 41. bxa4 {[%clk 0:00:07.4]}
41... Rxa4 {[%clk 0:01:01.7]} 42. Bd8 {[%clk 0:00:08.1]} 42... Ra6 {[%clk
0:00:57]} 43. Rxb6 {[%clk 0:00:07.4]} 43... Ra8 {[%clk 0:00:57.6]} 44. Bf6
{[%clk 0:00:06.5]} 44... Rc8 {[%clk 0:00:58.1]} 45. Rb4 {[%clk 0:00:05.6]} 45...
Rc6 {[%clk 0:00:58.7]} 46. Bd4 {[%clk 0:00:05.6]} 46... Kf7 {[%clk 0:00:57.6]}
47. c5 {[%clk 0:00:06]} 1-0

[Event "Late-Titled-Tuesday-Blitz-March-19-2024"]
[Site "Chess.com"]
[Date "2024.03.19"]
[Round "11"]
[White "prochn"]
[Black "HaryKane"]
[Result "1-0"]
[WhiteElo "2498"]
[BlackElo "2577"]
[TimeControl "180+1"]
[EndTime "16:04:32 PDT"]
[Termination "prochn won by checkmate"]

1. d4 {[%clk 0:03:00.9]} 1... g6 {[%clk 0:02:57.2]} 2. c4 {[%clk 0:02:58.2]}
2... Bg7 {[%clk 0:02:56.9]} 3. g3 {[%clk 0:02:58.7]} 3... d6 {[%clk 0:02:44.9]}
4. Bg2 {[%clk 0:02:58.1]} 4... Nd7 {[%clk 0:02:40.5]} 5. e4 {[%clk 0:02:53.4]}
5... e5 {[%clk 0:02:40]} 6. Ne2 {[%clk 0:02:50.9]} 6... Ne7 {[%clk 0:02:39.1]}
7. O-O {[%clk 0:02:50.7]} 7... O-O {[%clk 0:02:37.7]} 8. Nbc3 {[%clk 0:02:49.7]}
8... Rb8 {[%clk 0:02:28.3]} 9. h3 {[%clk 0:02:46.2]} 9... a6 {[%clk 0:02:28.3]}
10. Be3 {[%clk 0:02:33.7]} 10... b5 {[%clk 0:02:23.1]} 11. cxb5 {[%clk
0:02:30.5]} 11... axb5 {[%clk 0:02:24]} 12. b4 {[%clk 0:02:23.5]} 12... f5
{[%clk 0:02:15.5]} 13. Qd2 {[%clk 0:01:53.9]} 13... Nb6 {[%clk 0:02:09.8]} 14.
d5 {[%clk 0:01:35.7]} 14... Nc4 {[%clk 0:02:08.8]} 15. Qd3 {[%clk 0:01:36.2]}
15... fxe4 {[%clk 0:01:56.8]} 16. Nxe4 {[%clk 0:01:31.5]} 16... Nxe3 {[%clk
0:01:44.2]} 17. fxe3 {[%clk 0:01:28.1]} 17... Nf5 {[%clk 0:01:37.8]} 18. N2c3
{[%clk 0:01:25.9]} 18... Bd7 {[%clk 0:01:27.7]} 19. Kh2 {[%clk 0:01:25.3]} 19...
Bh6 {[%clk 0:01:26.2]} 20. Rf3 {[%clk 0:01:21.8]} 20... Qe7 {[%clk 0:01:22.9]}
21. Rc1 {[%clk 0:01:13.7]} 21... c6 {[%clk 0:01:13.3]} 22. dxc6 {[%clk
0:01:10.9]} 22... Bxc6 {[%clk 0:01:14.2]} 23. Nd5 {[%clk 0:01:10.5]} 23... Qb7
{[%clk 0:01:05.2]} 24. Rxc6 {[%clk 0:00:59.2]} 24... Qxc6 {[%clk 0:01:00]} 25.
Rxf5 {[%clk 0:00:57.6]} 25... Qc4 {[%clk 0:00:59.5]} 26. Ne7+ {[%clk 0:00:45]}
26... Kg7 {[%clk 0:00:50.5]} 27. Qxd6 {[%clk 0:00:09.5]} 27... Rxf5 {[%clk
0:00:17]} 28. Nxf5+ {[%clk 0:00:09.3]} 28... gxf5 {[%clk 0:00:17.3]} 29. Qxe5+
{[%clk 0:00:09.5]} 29... Kg6 {[%clk 0:00:08.2]} 30. Qf6+ {[%clk 0:00:09.2]}
30... Kh5 {[%clk 0:00:08.5]} 31. Bf3# {[%clk 0:00:09.7]} 1-0

[Event "Late-Titled-Tuesday-Blitz-March-19-2024"]
[Site "Chess.com"]
[Date "2024.03.19"]
[Round "11"]
[White "TregubovP"]
[Black "MikaelyanArman"]
[Result "1-0"]
[WhiteElo "2700"]
[BlackElo "2831"]
[TimeControl "180+1"]
[EndTime "16:04:37 PDT"]
[Termination "TregubovP won on time"]

1. e4 {[%clk 0:03:00.9]} 1... c5 {[%clk 0:03:00.4]} 2. Nf3 {[%clk 0:03:00.9]}
2... Qa5 {[%clk 0:03:01]} 3. c3 {[%clk 0:02:57.7]} 3... Nc6 {[%clk 0:03:00.6]}
4. Be2 {[%clk 0:02:54.6]} 4... Nf6 {[%clk 0:03:00.4]} 5. d3 {[%clk 0:02:50.6]}
5... d5 {[%clk 0:02:59]} 6. Nbd2 {[%clk 0:02:46.6]} 6... g6 {[%clk 0:02:54.8]}
7. O-O {[%clk 0:02:45.3]} 7... Bg7 {[%clk 0:02:55.2]} 8. e5 {[%clk 0:02:43.7]}
8... Ng4 {[%clk 0:02:52.9]} 9. d4 {[%clk 0:02:43.1]} 9... O-O {[%clk 0:02:53.1]}
10. h3 {[%clk 0:02:41.7]} 10... cxd4 {[%clk 0:02:32.5]} 11. hxg4 {[%clk
0:02:37.5]} 11... dxc3 {[%clk 0:02:32.8]} 12. Nb3 {[%clk 0:02:34.8]} 12... Qc7
{[%clk 0:02:29.3]} 13. bxc3 {[%clk 0:02:25.5]} 13... Bxg4 {[%clk 0:02:29.2]} 14.
Qxd5 {[%clk 0:02:19.3]} 14... Rad8 {[%clk 0:02:27.2]} 15. Qe4 {[%clk 0:02:17]}
15... Bf5 {[%clk 0:02:26.3]} 16. Qh4 {[%clk 0:02:15.6]} 16... Nxe5 {[%clk
0:02:24.3]} 17. Bg5 {[%clk 0:01:59]} 17... f6 {[%clk 0:01:55.2]} 18. Nxe5 {[%clk
0:01:34.6]} 18... Qxe5 {[%clk 0:01:56.1]} 19. Be3 {[%clk 0:01:33.8]} 19... Qxc3
{[%clk 0:01:44.3]} 20. Qc4+ {[%clk 0:01:32.2]} 20... Qxc4 {[%clk 0:01:42.5]} 21.
Bxc4+ {[%clk 0:01:32.8]} 21... Kh8 {[%clk 0:01:43.2]} 22. Bxa7 {[%clk 0:01:32]}
22... Rc8 {[%clk 0:01:39.3]} 23. Bd5 {[%clk 0:01:30.1]} 23... Bd3 {[%clk
0:01:25.8]} 24. Rfd1 {[%clk 0:01:20.8]} 24... Bc2 {[%clk 0:01:26.1]} 25. Re1
{[%clk 0:01:18.5]} 25... f5 {[%clk 0:01:24]} 26. Rac1 {[%clk 0:01:12.2]} 26...
Bxb3 {[%clk 0:00:33.8]} 27. axb3 {[%clk 0:01:09.1]} 27... e5 {[%clk 0:00:20.1]}
28. Bxb7 {[%clk 0:01:02.3]} 28... Rxc1 {[%clk 0:00:10.2]} 29. Rxc1 {[%clk
0:01:01.6]} 29... Rf7 {[%clk 0:00:10.8]} 30. Rc8+ {[%clk 0:00:59.4]} 30... Bf8
{[%clk 0:00:11.2]} 31. Bc5 {[%clk 0:00:51]} 31... Rxb7 {[%clk 0:00:11.1]} 32.
Rxf8+ {[%clk 0:00:50.7]} 32... Kg7 {[%clk 0:00:11.6]} 33. b4 {[%clk 0:00:51.3]}
33... e4 {[%clk 0:00:06.3]} 34. Kf1 {[%clk 0:00:44.5]} 34... h5 {[%clk
0:00:03.3]} 35. Ke2 {[%clk 0:00:43]} 35... Rd7 {[%clk 0:00:02.6]} 36. Rc8 {[%clk
0:00:40.4]} 36... Rd3 {[%clk 0:00:02.3]} 37. b5 {[%clk 0:00:39.6]} 37... Rb3
{[%clk 0:00:02.9]} 38. b6 {[%clk 0:00:40]} 38... f4 {[%clk 0:00:03.5]} 39. Rc7+
{[%clk 0:00:37.3]} 39... Kf6 {[%clk 0:00:03]} 40. b7 {[%clk 0:00:37.8]} 40...
Rb2+ {[%clk 0:00:02.4]} 41. Kd1 {[%clk 0:00:37.2]} 41... Kf5 {[%clk 0:00:03.1]}
42. Ba7 {[%clk 0:00:36.5]} 42... e3 {[%clk 0:00:02.5]} 43. fxe3 {[%clk
0:00:36.3]} 1-0

[Event "Late-Titled-Tuesday-Blitz-March-19-2024"]
[Site "Chess.com"]
[Date "2024.03.19"]
[Round "11"]
[White "Supelyel"]
[Black "DeArron_Fox"]
[Result "1-0"]
[WhiteElo "2399"]
[BlackElo "2487"]
[TimeControl "180+1"]
[EndTime "16:04:42 PDT"]
[Termination "Supelyel won on time"]

1. c4 {[%clk 0:03:00.9]} 1... e6 {[%clk 0:02:56]} 2. Nf3 {[%clk 0:02:54.5]} 2...
d5 {[%clk 0:02:56.4]} 3. b3 {[%clk 0:02:54.5]} 3... Nf6 {[%clk 0:02:56.2]} 4.
Bb2 {[%clk 0:02:54.8]} 4... Be7 {[%clk 0:02:56.3]} 5. g3 {[%clk 0:02:55.2]} 5...
O-O {[%clk 0:02:54.6]} 6. Bg2 {[%clk 0:02:55.6]} 6... b6 {[%clk 0:02:53.7]} 7.
O-O {[%clk 0:02:55.6]} 7... Bb7 {[%clk 0:02:54.2]} 8. d4 {[%clk 0:02:56.1]} 8...
Nbd7 {[%clk 0:02:53.4]} 9. Nbd2 {[%clk 0:02:55.4]} 9... c5 {[%clk 0:02:53.1]}
10. Rc1 {[%clk 0:02:55.5]} 10... Rc8 {[%clk 0:02:52.4]} 11. e3 {[%clk
0:02:36.3]} 11... Qc7 {[%clk 0:02:19.7]} 12. cxd5 {[%clk 0:02:24.6]} 12... Nxd5
{[%clk 0:02:11.2]} 13. dxc5 {[%clk 0:02:24.5]} 13... Nxc5 {[%clk 0:01:28.9]} 14.
a3 {[%clk 0:02:00.5]} 14... Qb8 {[%clk 0:01:26.2]} 15. b4 {[%clk 0:02:00.4]}
15... Nd3 {[%clk 0:00:57.6]} 16. Rxc8 {[%clk 0:01:58.8]} 16... Rxc8 {[%clk
0:00:58.5]} 17. Ba1 {[%clk 0:01:49.3]} 17... Nc3 {[%clk 0:00:21.4]} 18. Bxc3
{[%clk 0:01:32.2]} 18... Rxc3 {[%clk 0:00:22.3]} 19. Nb1 {[%clk 0:01:21.6]}
19... Qc7 {[%clk 0:00:03.6]} 20. Nxc3 {[%clk 0:01:21.5]} 20... Qxc3 {[%clk
0:00:03.8]} 21. Qa1 {[%clk 0:01:20.4]} 21... Qxa1 {[%clk 0:00:02.2]} 22. Rxa1
{[%clk 0:01:20]} 22... g6 {[%clk 0:00:02.7]} 23. Nd4 {[%clk 0:01:19.5]} 23...
Bxg2 {[%clk 0:00:01.9]} 24. Kxg2 {[%clk 0:01:20.4]} 24... Bf6 {[%clk 0:00:02.5]}
25. Rd1 {[%clk 0:01:17.5]} 25... Nb2 {[%clk 0:00:02.7]} 26. Rc1 {[%clk
0:01:17.5]} 26... a5 {[%clk 0:00:01.8]} 27. bxa5 {[%clk 0:01:10.2]} 27... bxa5
{[%clk 0:00:02.7]} 28. Rc8+ {[%clk 0:01:09.4]} 28... Kg7 {[%clk 0:00:02.6]} 29.
Rc7 {[%clk 0:01:10]} 29... Bxd4 {[%clk 0:00:01.5]} 30. exd4 {[%clk 0:01:10.2]}
30... a4 {[%clk 0:00:01.9]} 31. Rc3 {[%clk 0:01:08.3]} 31... Kf6 {[%clk
0:00:01.5]} 32. f4 {[%clk 0:01:07]} 32... Ke7 {[%clk 0:00:01.9]} 33. Kf3 {[%clk
0:01:06.8]} 33... Kd6 {[%clk 0:00:02.5]} 34. Rc5 {[%clk 0:00:58.5]} 34... Nd3
{[%clk 0:00:02]} 35. Ra5 {[%clk 0:00:57.7]} 35... Nb2 {[%clk 0:00:02.4]} 36. Ke4
{[%clk 0:00:55.6]} 36... f5+ {[%clk 0:00:01.3]} 37. Kf3 {[%clk 0:00:54.1]} 37...
Kc6 {[%clk 0:00:01.8]} 38. h3 {[%clk 0:00:51.4]} 38... Kb6 {[%clk 0:00:02.1]}
39. Re5 {[%clk 0:00:51.2]} 39... Kc6 {[%clk 0:00:02.8]} 40. Rxe6+ {[%clk
0:00:51.4]} 40... Kd5 {[%clk 0:00:03.4]} 41. Re7 {[%clk 0:00:50.3]} 41... Kxd4
{[%clk 0:00:02]} 42. Rxh7 {[%clk 0:00:50.7]} 42... Kc4 {[%clk 0:00:02.2]} 43.
Rh6 {[%clk 0:00:51.3]} 43... Kb3 {[%clk 0:00:02.1]} 44. Rxg6 {[%clk 0:00:51.6]}
44... Kxa3 {[%clk 0:00:02.6]} 45. h4 {[%clk 0:00:51.9]} 45... Nc4 {[%clk
0:00:02.5]} 46. Ra6 {[%clk 0:00:49.2]} 46... Kb4 {[%clk 0:00:02.4]} 47. h5
{[%clk 0:00:48.1]} 47... a3 {[%clk 0:00:01.4]} 48. h6 {[%clk 0:00:43.4]} 48...
Na5 {[%clk 0:00:01.9]} 49. h7 {[%clk 0:00:43.4]} 1-0

[Event "Late-Titled-Tuesday-Blitz-March-19-2024"]
[Site "Chess.com"]
[Date "2024.03.19"]
[Round "11"]
[White "RantomOpening"]
[Black "Fonsofan"]
[Result "0-1"]
[WhiteElo "2606"]
[BlackElo "2743"]
[TimeControl "180+1"]
[EndTime "16:04:59 PDT"]
[Termination "Fonsofan won by checkmate"]

1. c4 {[%clk 0:03:00.8]} 1... a6 {[%clk 0:02:58.7]} 2. Nf3 {[%clk 0:02:57]} 2...
b5 {[%clk 0:02:59.1]} 3. e3 {[%clk 0:02:53.9]} 3... bxc4 {[%clk 0:02:57.4]} 4.
Nc3 {[%clk 0:02:53.1]} 4... e6 {[%clk 0:02:58.3]} 5. Bxc4 {[%clk 0:02:52.4]}
5... Nf6 {[%clk 0:02:57.5]} 6. d4 {[%clk 0:02:51.9]} 6... c5 {[%clk 0:02:57.9]}
7. d5 {[%clk 0:02:50.6]} 7... Bb7 {[%clk 0:02:57.7]} 8. e4 {[%clk 0:02:50.7]}
8... exd5 {[%clk 0:02:56.7]} 9. exd5 {[%clk 0:02:50.9]} 9... d6 {[%clk
0:02:55.9]} 10. O-O {[%clk 0:02:49.7]} 10... Be7 {[%clk 0:02:56.4]} 11. Re1
{[%clk 0:02:42.8]} 11... O-O {[%clk 0:02:56]} 12. h3 {[%clk 0:02:39.7]} 12...
Nbd7 {[%clk 0:02:56.3]} 13. Bf4 {[%clk 0:02:39.7]} 13... Nb6 {[%clk 0:02:56.2]}
14. b3 {[%clk 0:02:37.9]} 14... Re8 {[%clk 0:02:48.2]} 15. Qd2 {[%clk
0:02:37.4]} 15... Qd7 {[%clk 0:02:37.5]} 16. Qd3 {[%clk 0:02:33.2]} 16... h6
{[%clk 0:02:32.5]} 17. a4 {[%clk 0:02:32]} 17... Nxc4 {[%clk 0:02:27.1]} 18.
bxc4 {[%clk 0:02:31.9]} 18... Qc7 {[%clk 0:02:24.5]} 19. a5 {[%clk 0:02:31.6]}
19... Bc8 {[%clk 0:02:19.9]} 20. Na4 {[%clk 0:02:20.6]} 20... Qxa5 {[%clk
0:02:13.9]} 21. Rxe7 {[%clk 0:02:19.4]} 21... Rxe7 {[%clk 0:02:10.3]} 22. Bxd6
{[%clk 0:02:19.4]} 22... Re8 {[%clk 0:02:01]} 23. Bxc5 {[%clk 0:02:18.4]} 23...
Ne4 {[%clk 0:01:59.4]} 24. Bd4 {[%clk 0:02:14.5]} 24... Qd8 {[%clk 0:01:40.4]}
25. Nb6 {[%clk 0:02:11.2]} 25... Rb8 {[%clk 0:01:40.1]} 26. c5 {[%clk
0:02:09.2]} 26... Rxb6 {[%clk 0:01:34.4]} 27. cxb6 {[%clk 0:02:08.7]} 27... Qxd5
{[%clk 0:01:35.1]} 28. Qc2 {[%clk 0:01:55]} 28... Bb7 {[%clk 0:01:32.4]} 29. Re1
{[%clk 0:01:49.7]} 29... Rc8 {[%clk 0:01:24.8]} 30. Qb2 {[%clk 0:01:50]} 30...
Ng5 {[%clk 0:01:23.9]} 31. Re3 {[%clk 0:01:37]} 31... f6 {[%clk 0:01:11.7]} 32.
Qe2 {[%clk 0:01:26.1]} 32... Nxf3+ {[%clk 0:01:00]} 33. Qxf3 {[%clk 0:01:25.9]}
33... Rc1+ {[%clk 0:00:49.7]} 34. Kh2 {[%clk 0:01:25]} 34... Qd6+ {[%clk
0:00:28.6]} 35. Qg3 {[%clk 0:01:24.9]} 35... Qxg3+ {[%clk 0:00:13.9]} 36. Kxg3
{[%clk 0:01:25.8]} 36... Kf7 {[%clk 0:00:13.7]} 37. Bc3 {[%clk 0:01:11.7]} 37...
Rd1 {[%clk 0:00:11.2]} 38. Bb4 {[%clk 0:01:11.1]} 38... Rd7 {[%clk 0:00:11.3]}
39. Bc5 {[%clk 0:01:08.5]} 39... g5 {[%clk 0:00:11.2]} 40. h4 {[%clk 0:01:07.1]}
40... Kg6 {[%clk 0:00:11.7]} 41. hxg5 {[%clk 0:01:07.2]} 41... hxg5 {[%clk
0:00:12.6]} 42. Re8 {[%clk 0:00:55.6]} 42... Rd5 {[%clk 0:00:12.3]} 43. Be3
{[%clk 0:00:53]} 43... Rb5 {[%clk 0:00:12.4]} 44. Re7 {[%clk 0:00:51.4]} 44...
Bd5 {[%clk 0:00:12.3]} 45. Ra7 {[%clk 0:00:50.7]} 45... a5 {[%clk 0:00:12.2]}
46. Ra6 {[%clk 0:00:47.2]} 46... Kh5 {[%clk 0:00:07.7]} 47. b7 {[%clk
0:00:45.8]} 47... f5 {[%clk 0:00:04]} 48. f4 {[%clk 0:00:42.3]} 48... Bxb7
{[%clk 0:00:01.1]} 49. Rf6 {[%clk 0:00:39.6]} 49... Rb3 {[%clk 0:00:02]} 50. Kf2
{[%clk 0:00:38.7]} 50... Rb2+ {[%clk 0:00:02.4]} 51. Kg3 {[%clk 0:00:38.2]}
51... Rxg2+ {[%clk 0:00:02.9]} 52. Kh3 {[%clk 0:00:38.9]} 52... g4# {[%clk
0:00:03.6]} 0-1